bitfinex/quotes_SOLUSD_20241202
["timestamp","ask_amount","ask_price","bid_price","bid_amount"]
[1733120145945,20.0,228.09,228.02,23.776884]
[1733120146142,0.5269661,228.11,228.04,40.34256382]
[1733120146349,0.5269661,228.11,228.06,23.776884]
[1733120146556,0.5269661,228.11,228.08,23.776884]
[1733120147043,0.5269661,228.11,228.03,23.902374]
[1733120147340,0.5269661,228.11,228.01,4.396]
[1733120147341,0.5269661,228.11,228.01,23.776884]
[1733120147539,0.5269661,228.11,228.02,0.87463249]
[1733120147957,0.5269661,228.11,228.03,16.56567982]
[1733120148157,0.5269661,228.11,228.04,0.87442844]
[1733120148877,0.5269661,228.11,228.05,23.776884]
[1733120149175,0.5269661,228.11,228.01,4.396]
[1733120149176,0.5269661,228.11,228.07,23.776884]
[1733120149347,0.5269661,228.11,228.09,23.776884]
[1733120151759,0.5269661,228.11,228.05,0.87439188]
[1733120152262,0.5269661,228.11,228.02,16.56567982]
[1733120152263,0.5269661,228.11,228.06,23.776884]
[1733120152636,0.5269661,228.11,228.02,0.8744821]
[1733120152840,0.5269661,228.11,227.98,32.13017982]
[1733120152841,0.5269661,228.11,227.98,16.43903312]
[1733120154146,0.5269661,228.11,227.99,23.902374]
[1733120154377,0.5269661,228.11,228.01,23.776884]
[1733120154680,0.5269661,228.11,228.03,23.776884]
[1733120159663,0.5269661,228.11,228.02,23.776884]
[1733120160877,0.5269661,228.11,228.03,23.776884]
[1733120161276,20.0,228.07,227.93,15.1138]
[1733120161447,0.87591707,228.06,227.93,15.1138]
[1733120161646,0.87591707,228.06,227.88,15.1138]
[1733120161844,20.0,228.02,227.88,15.1138]
[1733120162084,16.3144,228.0,227.88,15.1138]
[1733120162570,20.0,227.97,227.89,0.87511828]
[1733120163149,16.3144,228.0,227.89,21.8367981]
[1733120163449,20.0,228.02,227.93,16.56567982]
[1733120163650,20.0,228.02,227.95,4.396]
[1733120163869,20.0,228.02,227.96,0.87482508]
[1733120164070,20.0,228.02,227.92,17.04583236]
[1733120164271,20.0,228.02,227.93,23.776884]
[1733120165552,20.0,228.02,227.94,0.87495414]
[1733120165752,20.0,228.02,227.95,23.776884]
[1733120168185,0.87591707,228.01,227.88,4.396]
[1733120168477,20.0,227.97,227.89,0.87520068]
[1733120169681,20.0,227.97,227.86,5.27110968]
[1733120169981,20.0,227.97,227.88,4.396]
[1733120170157,20.0,227.97,227.9,28.172884]
[1733120173587,20.0,227.97,227.9,23.776884]
[1733120173771,0.87591707,227.96,227.9,23.776884]
[1733120174075,20.0,227.97,227.9,23.776884]
[1733120174673,20.0,227.97,227.88,23.776884]
[1733120174976,20.0,227.97,227.9,23.776884]
[1733120175282,20.0,227.97,227.92,23.776884]
[1733120175465,21.5809,228.0,227.93,0.87506196]
[1733120175660,21.5809,228.0,227.96,23.776884]
[1733120180970,20.0,228.02,227.96,23.776884]
[1733120181292,20.0,228.02,227.93,20.96167982]
[1733120181293,16.0638,228.05,227.98,23.776884]
[1733120182573,20.0,228.02,227.98,23.776884]
[1733120189707,6.4164,228.06,228.0,23.776884]
[1733120189875,6.4164,228.06,227.99,5.27081547]
[1733120189876,6.4164,228.06,228.02,23.776884]
[1733120190188,6.4164,228.06,228.02,28.172884]
[1733120190688,16.0708,228.1,228.02,28.172884]
[1733120190893,20.0,228.07,228.02,28.172884]
[1733120191477,16.0708,228.1,228.04,23.776884]
[1733120191678,16.0708,228.1,228.05,4.396]
[1733120191891,16.0708,228.1,228.06,23.776884]
[1733120192773,20.0,228.07,228.06,23.776884]
[1733120194808,0.5269661,228.11,228.07,24.027864]
[1733120195094,0.5269661,228.11,228.09,23.902374]
[1733120195310,0.5269661,228.11,228.1,24.90215743]
[1733120195700,0.5269661,228.11,228.1,23.776884]
[1733120204513,0.5269661,228.11,227.97,16.0326]
[1733120204693,15.1171,228.1,227.98,0.87469799]
[1733120204896,0.87591707,228.09,227.98,0.87469799]
[1733120205213,7.40741707,228.09,227.98,0.87469799]
[1733120205411,20.0,228.06,227.95,0.87476173]
[1733120205603,0.87591707,228.05,227.92,16.41888109]
[1733120205910,20.0,228.06,227.93,16.69116982]
[1733120206208,20.0,228.06,227.95,0.12549]
[1733120206420,20.0,228.06,227.96,0.87476299]
[1733120206797,20.0,228.06,227.97,24.027864]
[1733120207410,20.0,228.06,227.97,23.902374]
[1733120207915,0.87591707,228.05,227.97,23.776884]
[1733120209312,0.87591707,228.05,227.92,0.87496073]
[1733120210304,0.87591707,228.05,227.93,0.87495138]
[1733120210505,0.87591707,228.05,227.9,0.87495193]
[1733120210708,0.87591707,228.05,227.92,0.25098]
[1733120210904,22.564,228.04,227.92,0.12549]
[1733120211090,20.0,228.01,227.92,0.12549]
[1733120211291,0.87591707,228.0,227.86,0.8750878]
[1733120211511,20.0,228.01,227.89,16.56567982]
[1733120211714,20.0,228.01,227.9,0.87498247]
[1733120212097,20.0,228.01,227.9,17.44066229]
[1733120212395,20.0,228.01,227.91,16.56567982]
[1733120212721,22.564,228.04,227.95,0.12549]
[1733120212899,22.564,228.04,227.96,0.12549]
[1733120213100,22.564,228.04,227.98,24.027864]
[1733120213629,21.2037,228.15,228.03,24.027864]
[1733120213797,21.2037,228.15,228.05,0.25098]
[1733120213798,0.87591707,228.14,228.05,0.25098]
[1733120214003,21.2037,228.15,228.05,24.027864]
[1733120214204,21.2037,228.15,228.07,23.776884]
[1733120214720,20.0,228.12,228.07,23.776884]
[1733120216316,20.0,228.12,228.01,0.87452089]
[1733120216697,1.40288317,228.11,228.01,0.87452089]
[1733120216899,20.0,228.1,228.01,0.87452089]
[1733120217208,0.5269661,228.11,228.01,0.87452089]
[1733120217396,1.40288317,228.11,228.0,0.87465331]
[1733120217606,1.40288317,228.11,228.01,23.776884]
[1733120219903,15.3869,228.06,228.01,23.776884]
[1733120221597,20.0,228.03,227.97,0.8747504]
[1733120221800,20.0,228.03,227.93,0.87486262]
[1733120222224,15.3869,228.06,227.99,16.56567982]
[1733120222523,15.3869,228.06,228.0,17.44032739]
[1733120223103,15.3869,228.06,228.01,24.027864]
[1733120223304,15.3869,228.06,228.02,0.87465962]
[1733120223525,15.3869,228.06,228.03,23.776884]
[1733120223824,20.0,228.04,228.03,23.776884]
[1733120223997,15.3869,228.06,228.03,23.776884]
[1733120224198,6.4124,228.1,228.01,23.776884]
[1733120224425,6.4124,228.1,228.03,23.776884]
[1733120224621,6.4124,228.1,228.04,0.87456758]
[1733120224820,6.4124,228.1,228.05,23.776884]
[1733120225737,16.8913661,228.11,228.07,23.776884]
[1733120226107,16.8913661,228.11,228.09,23.776884]
[1733120226730,16.8913661,228.11,228.08,4.396]
[1733120226933,16.8913661,228.11,228.09,23.776884]
[1733120229312,0.5269661,228.11,228.09,24.027864]
[1733120229513,0.5269661,228.11,228.1,24.77669358]
[1733120229740,0.5269661,228.11,228.1,29.17269358]
[1733120231835,0.5269661,228.11,228.1,29.04720358]
[1733120232134,0.5269661,228.11,228.1,28.172884]
[1733120232732,0.5269661,228.11,228.1,23.776884]
[1733120233335,0.5269661,228.11,228.08,28.172884]
[1733120233822,0.5269661,228.11,228.05,4.396]
[1733120235135,0.5269661,228.11,228.07,23.776884]
[1733120235334,0.5269661,228.11,228.06,23.776884]
[1733120235821,0.5269661,228.11,228.08,23.776884]
[1733120236031,0.5269661,228.11,228.08,28.172884]
[1733120237043,0.87591707,228.17,228.09,0.12549]
[1733120237224,0.87591707,228.26,228.15,4.64698]
[1733120237415,0.87591707,228.26,228.16,0.87411556]
[1733120239132,20.0,228.24,228.16,0.87411556]
[1733120239340,20.0,228.24,228.19,23.776884]
[1733120239635,20.0,228.24,228.21,4.396]
[1733120239938,20.0,228.24,228.22,23.776884]
[1733120240135,21.5705,228.27,228.22,23.776884]
[1733120241133,21.8636727,228.27,228.22,23.776884]
[1733120241434,20.0,228.24,228.22,23.776884]
[1733120242922,20.0,228.24,228.12,0.87415085]
[1733120242923,0.87591707,228.23,228.12,0.87415085]
[1733120243329,0.87591707,228.23,228.09,5.2702698]
[1733120244539,0.87591707,228.23,228.09,0.8742698]
[1733120244717,6.0246,228.22,228.09,0.8742698]
[1733120244920,15.0237,228.18,228.09,0.8742698]
[1733120245121,15.89961707,228.18,228.09,0.8742698]
[1733120245837,15.89961707,228.18,228.11,4.396]
[1733120246020,15.89961707,228.18,228.12,28.172884]
[1733120246425,15.0237,228.18,228.12,28.172884]
[1733120248020,15.0237,228.18,228.12,29.04719208]
[1733120248839,15.0237,228.18,228.12,28.172884]
[1733120249436,20.0,228.25,228.14,23.776884]
[1733120249642,0.87591707,228.24,228.16,23.776884]
[1733120255146,0.87591707,228.24,228.18,23.776884]
[1733120255346,0.87591707,228.24,228.16,23.776884]
[1733120256041,1.16908977,228.24,228.16,23.776884]
[1733120256860,20.0,228.19,228.06,5.27034094]
[1733120257148,0.87591707,228.18,228.06,0.87434094]
[1733120258246,0.87591707,228.18,228.08,4.396]
[1733120258428,0.87591707,228.18,228.09,4.396]
[1733120258742,0.87591707,228.18,228.1,23.776884]
[1733120259446,20.0,228.14,228.03,4.396]
[1733120259759,0.87591707,228.13,228.04,0.87465428]
[1733120260548,0.87591707,228.13,228.04,5.27065428]
[1733120261446,0.87591707,228.13,228.07,23.776884]
[1733120262642,20.0,228.09,228.07,23.776884]
[1733120264054,20.0,228.05,227.97,4.396]
[1733120264546,20.0,228.05,227.96,5.27076849]
[1733120265440,20.0,228.05,227.97,23.776884]
[1733120266946,20.0,228.05,227.96,0.87493039]
[1733120267125,20.0,228.05,227.97,23.776884]
[1733120271225,20.0,228.05,227.99,23.776884]
[1733120271429,20.0,228.05,228.01,23.776884]
[1733120272026,20.0,228.05,228.02,0.87481253]
[1733120272232,20.0,228.05,228.03,23.776884]
[1733120274470,6.5504,228.08,228.03,23.776884]
[1733120274643,20.0,228.06,228.05,23.776884]
[1733120275645,20.0,228.06,228.04,4.396]
[1733120275646,20.0,228.06,228.03,28.172884]
[1733120277373,6.5504,228.08,228.03,28.172884]
[1733120280058,20.0,228.05,227.98,4.396]
[1733120280561,20.0,228.05,228.0,4.396]
[1733120280743,20.0,228.05,228.01,0.87472949]
[1733120281167,20.0,228.05,228.0,4.396]
[1733120281472,20.0,228.05,228.0,5.27075661]
[1733120281651,20.0,228.05,228.04,4.396]
[1733120281959,20.0,228.05,228.04,23.776884]
[1733120282169,20.0,228.05,228.02,23.776884]
[1733120282841,6.5504,228.08,228.02,23.776884]
[1733120283043,6.5504,228.08,228.04,28.172884]
[1733120283241,6.5504,228.08,228.04,4.396]
[1733120283541,6.5504,228.08,228.05,23.776884]
[1733120283754,6.5504,228.08,228.03,23.776884]
[1733120284739,6.5504,228.08,228.01,23.776884]
[1733120285679,20.0,228.05,227.99,23.776884]
[1733120285854,20.0,228.05,227.95,0.87471967]
[1733120287366,20.0,228.05,227.96,23.776884]
[1733120287566,20.0,228.05,227.98,23.776884]
[1733120292151,0.87591707,228.07,228.02,23.776884]
[1733120294571,3.19981821,228.07,228.02,23.776884]
[1733120296080,6.5504,228.08,228.02,23.776884]
[1733120297480,6.5504,228.08,228.01,23.776884]
[1733120297662,6.5504,228.08,228.03,23.776884]
[1733120298169,16.0181,228.12,228.05,23.776884]
[1733120298871,16.0181,228.12,228.07,23.776884]
[1733120299073,16.0181,228.12,228.05,23.776884]
[1733120300172,16.0181,228.12,228.06,23.776884]
[1733120301270,16.0181,228.12,228.04,23.776884]
[1733120301965,16.0181,228.12,228.05,0.87462946]
[1733120302172,16.0181,228.12,228.06,23.776884]
[1733120302346,16.0181,228.12,228.08,23.776884]
[1733120304067,0.87591707,228.11,228.08,23.776884]
[1733120304373,16.89401707,228.12,228.08,23.776884]
[1733120305980,16.89401707,228.12,228.08,23.776884]
[1733120307171,20.0,228.09,228.08,23.776884]
[1733120308847,16.0181,228.12,228.08,23.776884]
[1733120310452,20.0,228.09,228.08,23.776884]
[1733120310652,20.0,228.09,228.02,0.87468406]
[1733120310864,20.0,228.09,227.99,0.87468989]
[1733120311067,20.0,228.09,228.0,0.25098]
[1733120311276,20.0,228.09,228.02,0.12549]
[1733120311884,20.0,228.09,228.02,23.902374]
[1733120312385,20.0,228.09,228.04,23.776884]
[1733120313276,20.0,228.09,228.03,0.87469068]
[1733120313277,20.0,228.09,228.03,23.776884]
[1733120313473,20.0,228.09,228.05,23.776884]
[1733120314268,20.0,228.09,228.03,23.776884]
[1733120314988,20.0,228.09,228.02,0.87473351]
[1733120315195,20.0,228.09,228.03,23.776884]
[1733120317261,0.87591707,228.08,228.03,23.776884]
[1733120317472,20.0,228.04,228.03,23.776884]
[1733120320306,20.0,228.04,228.03,23.902374]
[1733120320966,20.0,228.04,228.03,23.776884]
[1733120326184,20.0,228.04,228.03,6.68478401]
[1733120326784,2.27475077,228.08,227.97,0.25098]
[1733120326987,0.87591707,228.07,227.96,0.87482491]
[1733120327189,0.87591707,228.07,227.92,11.44146872]
[1733120327501,0.87591707,228.07,227.93,0.37647]
[1733120327796,0.87591707,228.07,227.84,4.396]
[1733120327797,20.0,228.03,227.86,26.32]
[1733120327980,0.87591707,228.02,227.87,0.87512955]
[1733120328180,20.0,227.99,227.87,0.87512955]
[1733120328685,9.43390331,228.05,227.87,0.87512955]
[1733120328686,20.0,228.01,227.87,0.87512955]
[1733120328887,20.0,227.99,227.87,0.87512955]
[1733120329203,0.87591707,228.02,227.89,0.25098]
[1733120329506,0.87591707,228.02,227.9,23.776884]
[1733120330007,20.0,227.99,227.9,23.776884]
[1733120330391,20.0,227.98,227.9,23.776884]
[1733120330702,20.0,227.99,227.9,23.776884]
[1733120330998,20.0,228.01,227.9,23.776884]
[1733120331194,20.0,227.97,227.9,23.776884]
[1733120331503,6.1064,227.96,227.89,0.87512071]
[1733120331678,6.1064,227.96,227.85,0.87515633]
[1733120331679,20.0,227.93,227.85,0.87515633]
[1733120332197,20.0,227.93,227.81,0.87533897]
[1733120332376,20.0,227.93,227.82,0.12549]
[1733120332572,20.0,227.93,227.83,0.87530101]
[1733120332977,20.0,227.93,227.84,24.027864]
[1733120333195,20.0,227.93,227.8,0.87530114]
[1733120333599,0.87591707,227.92,227.8,0.87530114]
[1733120333788,20.0,227.93,227.8,0.87530114]
[1733120333978,20.0,227.89,227.8,0.87530114]
[1733120334177,0.87591707,227.92,227.81,0.87539398]
[1733120334905,0.87591707,227.92,227.82,24.027864]
[1733120335406,0.87591707,227.92,227.82,0.25098]
[1733120335709,0.87591707,227.92,227.84,0.12549]
[1733120335909,0.87591707,227.92,227.83,23.776884]
[1733120336280,0.87591707,227.92,227.79,0.87540904]
[1733120337578,20.0,227.88,227.74,0.87559432]
[1733120337783,0.87591707,227.87,227.74,0.87559432]
[1733120338011,0.87591707,227.87,227.7,0.87569258]
[1733120338806,20.0,227.83,227.7,0.87569258]
[1733120338981,0.87591707,227.82,227.69,0.87583116]
[1733120339793,0.87591707,227.82,227.7,0.12549]
[1733120339998,0.87591707,227.82,227.68,0.12549]
[1733120340390,0.87591707,227.82,227.68,0.25098]
[1733120341320,0.87591707,227.82,227.69,0.12549]
[1733120341608,0.87591707,227.82,227.71,0.12549]
[1733120343906,20.0,227.78,227.67,0.2232788]
[1733120344095,15.8463,227.77,227.67,1.09924053]
[1733120345305,15.8463,227.77,227.68,23.776884]
[1733120345888,20.0,227.74,227.68,23.776884]
[1733120346504,6.5258,227.73,227.67,0.2232788]
[1733120346819,20.0,227.7,227.67,0.2232788]
[1733120347318,15.7622,227.68,227.67,0.2232788]
[1733120351411,6.5258,227.73,227.67,0.2232788]
[1733120352000,8.72507911,227.72,227.67,0.2232788]
[1733120352236,0.87591707,227.72,227.67,0.2232788]
[1733120352526,20.0,227.7,227.67,0.2232788]
[1733120352724,0.87591707,227.69,227.67,0.2232788]
[1733120353228,0.87591707,227.69,227.57,24.027864]
[1733120353732,0.87591707,227.69,227.57,0.25098]
[1733120354226,20.0,227.66,227.58,23.776884]
[1733120354724,0.87591707,227.69,227.58,23.776884]
[1733120355806,20.0,227.65,227.58,23.776884]
[1733120356007,0.87591707,227.69,227.6,23.776884]
[1733120356522,20.0,227.65,227.6,23.776884]
[1733120357111,20.0,227.7,227.6,23.776884]
[1733120357424,20.0,227.66,227.62,23.776884]
[1733120357725,20.0,227.7,227.64,23.776884]
[1733120358428,9.70270394,227.73,227.64,23.776884]
[1733120359724,20.0,227.7,227.64,23.776884]
[1733120360135,20.0,227.7,227.59,0.87616969]
[1733120360432,20.87591707,227.7,227.59,0.87616969]
[1733120360728,20.87591707,227.7,227.55,0.87633776]
[1733120361320,20.0,227.7,227.55,0.87633776]
[1733120361524,0.87591707,227.69,227.55,0.87633776]
[1733120361912,0.87591707,227.69,227.56,0.87638565]
[1733120362109,0.87591707,227.69,227.57,24.027864]
[1733120362825,0.87591707,227.69,227.55,23.776884]
[1733120363024,0.87591707,227.69,227.51,0.87648979]
[1733120363025,20.0,227.61,227.51,0.87648979]
[1733120364412,20.0,227.61,227.48,0.87661669]
[1733120364413,0.87591707,227.6,227.48,0.87661669]
[1733120364720,20.0,227.56,227.48,0.87661669]
[1733120364916,20.0,227.56,227.45,0.87677671]
[1733120366408,7.10661707,227.55,227.45,0.87677671]
[1733120366710,20.0,227.52,227.44,0.5164515]
[1733120366935,20.0,227.52,227.45,0.87688712]
[1733120367844,20.0,227.52,227.46,23.776884]
[1733120368135,20.0,227.52,227.48,23.776884]
[1733120368632,15.6959,227.59,227.5,23.776884]
[1733120368820,15.6959,227.59,227.52,23.776884]
[1733120370237,20.0,227.56,227.52,23.776884]
[1733120371824,20.0,227.56,227.54,23.776884]
[1733120375026,15.6959,227.59,227.54,23.776884]
[1733120375234,22.4749,227.65,227.56,0.25098]
[1733120375432,22.4749,227.65,227.57,0.87634732]
[1733120375628,22.4749,227.65,227.58,23.776884]
[1733120376815,20.0,227.62,227.53,0.87639097]
[1733120377020,20.0,227.62,227.5,24.027864]
[1733120377430,20.0,227.62,227.52,23.902374]
[1733120377620,20.0,227.62,227.54,23.776884]
[1733120377820,20.0,227.62,227.55,0.87648586]
[1733120378035,20.0,227.62,227.56,23.776884]
[1733120381346,20.0,227.62,227.53,23.776884]
[1733120381532,20.0,227.62,227.55,23.776884]
[1733120382442,2.36139305,227.63,227.57,23.776884]
[1733120382648,6.246,227.65,227.59,23.776884]
[1733120382945,6.246,227.65,227.6,0.87629992]
[1733120383734,20.0,227.62,227.6,0.87629992]
[1733120384218,20.0,227.62,227.59,23.776884]
[1733120385831,20.0,227.62,227.57,23.776884]
[1733120386619,20.0,227.62,227.5,1.00197443]
[1733120386818,20.0,227.62,227.51,16.5767534]
[1733120387018,20.0,227.62,227.53,0.12549]
[1733120387219,20.0,227.62,227.54,0.87642038]
[1733120388050,20.0,227.62,227.55,23.902374]
[1733120388226,20.0,227.62,227.57,23.776884]
[1733120388828,20.0,227.66,227.59,23.776884]
[1733120389150,20.0,227.66,227.6,0.87633181]
[1733120391229,20.0,227.66,227.61,23.776884]
[1733120391430,20.0,227.66,227.63,23.776884]
[1733120391725,20.0,227.66,227.58,24.027864]
[1733120391923,20.0,227.66,227.6,23.902374]
[1733120392827,20.0,227.66,227.6,1.00177384]
[1733120393026,20.0,227.66,227.61,23.776884]
[1733120394641,20.0,227.66,227.62,4.391]
[1733120394855,20.0,227.66,227.61,23.776884]
[1733120394856,20.0,227.66,227.61,24.65315399]
[1733120396841,20.0,227.66,227.61,23.776884]
[1733120397045,20.0,227.66,227.58,0.12549]
[1733120397046,20.0,227.66,227.6,23.776884]
[1733120397433,20.0,227.66,227.62,23.776884]
[1733120397844,20.0,227.66,227.6,23.776884]
[1733120398141,20.0,227.66,227.62,23.776884]
[1733120398341,16.2684,227.69,227.62,23.776884]
[1733120398538,6.2222,227.71,227.64,23.776884]
[1733120398741,6.2222,227.71,227.65,0.87610152]
[1733120399252,6.2222,227.71,227.66,23.776884]
[1733120400338,140.3,227.84,227.68,23.776884]
[1733120400339,6.1509,227.76,227.68,23.776884]
[1733120400552,6.1509,227.76,227.7,23.776884]
[1733120400751,6.1509,227.76,227.72,23.776884]
[1733120401525,6.1509,227.76,227.73,0.87588116]
[1733120401748,15.7556,227.79,227.73,0.87588116]
[1733120402852,20.0,227.76,227.73,0.87588116]
[1733120403234,15.7556,227.79,227.73,0.87588116]
[1733120405047,15.7556,227.79,227.74,23.776884]
[1733120405257,15.7556,227.79,227.74,24.65264694]
[1733120405555,15.7556,227.79,227.74,23.776884]
[1733120406061,20.0,227.76,227.7,0.87578318]
[1733120406356,20.0,227.76,227.61,20.5284]
[1733120406357,20.0,227.76,227.67,0.25098]
[1733120406559,0.87591707,227.75,227.63,0.87599346]
[1733120406732,20.0,227.71,227.63,0.87599346]
[1733120407351,0.87591707,227.75,227.63,0.87599346]
[1733120407541,20.0,227.76,227.61,15.5284]
[1733120407542,20.0,227.76,227.64,0.87613155]
[1733120407735,20.0,227.76,227.65,16.5767534]
[1733120407935,15.7556,227.79,227.64,0.87613155]
[1733120407936,15.7556,227.79,227.66,41.48054542]
[1733120408247,15.7556,227.79,227.68,24.027864]
[1733120408445,15.7556,227.79,227.71,0.25098]
[1733120408643,16.2852,227.85,227.75,23.776884]
[1733120408944,16.2852,227.85,227.77,23.776884]
[1733120409150,0.87591707,227.84,227.76,0.87556898]
[1733120409332,0.87591707,227.84,227.73,23.776884]
[1733120409527,0.87591707,227.84,227.71,16.7022434]
[1733120409528,0.87591707,227.84,227.75,23.776884]
[1733120410261,0.87591707,227.84,227.76,0.87575734]
[1733120410755,20.0,227.82,227.76,0.87575734]
[1733120411353,20.0,227.82,227.75,23.776884]
[1733120412875,20.0,227.78,227.7,0.87574087]
[1733120413163,0.87591707,227.81,227.7,0.87574087]
[1733120413362,20.0,227.82,227.7,0.87574087]
[1733120413658,20.0,227.81,227.7,17.45249427]
[1733120413862,20.0,227.82,227.7,17.45249427]
[1733120414047,20.0,227.82,227.71,24.027864]
[1733120414249,20.0,227.82,227.73,23.902374]
[1733120414458,20.0,227.82,227.75,23.776884]
[1733120414655,20.0,227.82,227.77,23.776884]
[1733120414852,20.0,227.82,227.78,0.87563166]
[1733120415061,6.5925,227.86,227.79,23.776884]
[1733120416856,20.0,227.83,227.79,23.776884]
[1733120418737,20.0,227.83,227.81,23.776884]
[1733120418937,2.32514337,227.89,227.81,23.776884]
[1733120418938,20.0,227.87,227.81,23.776884]
[1733120419659,20.0,227.87,227.76,23.902374]
[1733120419902,20.0,227.87,227.78,34.49496357]
[1733120420044,17.3521268,227.9,227.78,34.49496357]
[1733120420045,17.3521268,227.9,227.8,23.776884]
[1733120420366,17.3521268,227.9,227.82,23.776884]
[1733120420960,18.22804387,227.9,227.82,23.776884]
[1733120421167,20.0,227.87,227.82,23.776884]
[1733120421458,22.0761,227.96,227.84,23.776884]
[1733120421660,22.0761,227.96,227.86,23.776884]
[1733120421959,0.87591707,227.95,227.86,23.776884]
[1733120422346,24.41415762,227.96,227.86,23.776884]
[1733120422545,20.0,227.93,227.84,23.776884]
[1733120422749,0.87591707,227.92,227.78,0.25098]
[1733120422952,0.87591707,227.92,227.78,23.902374]
[1733120423155,0.87591707,227.92,227.8,23.776884]
[1733120424262,15.6724,227.9,227.78,23.776884]
[1733120424562,20.0,227.86,227.8,23.776884]
[1733120424756,20.0,227.86,227.78,23.776884]
[1733120425181,20.0,227.87,227.78,23.776884]
[1733120425564,20.0,227.87,227.8,23.776884]
[1733120427070,0.87591707,227.86,227.75,0.87554968]
[1733120427478,0.87591707,227.86,227.71,0.87573845]
[1733120427782,20.0,227.82,227.71,0.87573845]
[1733120428158,20.0,227.82,227.69,0.87579528]
[1733120428467,20.0,227.8,227.69,0.87579528]
[1733120428978,20.0,227.82,227.69,0.87579528]
[1733120429285,0.87591707,227.81,227.67,0.87587809]
[1733120429491,20.0,227.77,227.67,0.87587809]
[1733120429659,0.87591707,227.81,227.67,0.87587809]
[1733120430186,0.87591707,227.81,227.68,0.87589927]
[1733120430362,20.0,227.77,227.69,23.776884]
[1733120430557,0.87591707,227.81,227.71,23.776884]
[1733120430780,20.0,227.77,227.71,23.776884]
[1733120431081,20.0,227.76,227.71,23.776884]
[1733120431284,20.0,227.75,227.73,23.776884]
[1733120431481,20.0,227.76,227.73,23.776884]
[1733120432077,20.0,227.82,227.73,23.776884]
[1733120432480,20.0,227.82,227.74,0.87577853]
[1733120432663,20.0,227.82,227.75,23.776884]
[1733120433163,22.30243611,227.82,227.75,23.776884]
[1733120434190,0.87591707,227.81,227.68,0.87580694]
[1733120434488,0.87591707,227.81,227.66,0.12549]
[1733120434873,20.0,227.77,227.67,0.87599317]
[1733120435712,20.0,227.73,227.67,0.87599317]
[1733120435994,20.0,227.73,227.68,0.87593198]
[1733120436173,0.87591707,227.81,227.68,0.87593198]
[1733120436174,0.87591707,227.81,227.69,23.776884]
[1733120436879,0.87591707,227.81,227.69,0.87593929]
[1733120437288,0.87591707,227.81,227.7,23.776884]
[1733120438170,0.87591707,227.81,227.68,23.776884]
[1733120438892,0.87591707,227.81,227.69,0.87594376]
[1733120439095,20.0,227.77,227.7,23.776884]
[1733120439279,22.30243611,227.82,227.67,0.12549]
[1733120439280,0.87591707,227.79,227.67,0.87592749]
[1733120439481,0.87591707,227.81,227.68,23.776884]
[1733120439783,0.87591707,227.81,227.69,0.87596158]
[1733120440909,0.87591707,227.81,227.68,23.776884]
[1733120441470,20.0,227.77,227.7,23.776884]
[1733120441697,0.87591707,227.81,227.72,23.776884]
[1733120442000,0.87591707,227.81,227.71,0.87587311]
[1733120442498,2.30243611,227.82,227.71,0.87587311]
[1733120442703,0.87591707,227.84,227.71,5.26687311]
[1733120443196,0.87591707,227.84,227.72,4.391]
[1733120443400,22.2396,227.85,227.72,4.391]
[1733120443401,22.2396,227.85,227.73,0.87570479]
[1733120443572,22.2396,227.85,227.73,5.26670479]
[1733120444002,22.2396,227.85,227.75,4.391]
[1733120444307,2.32803978,227.86,227.76,0.87560922]
[1733120444473,22.657,227.9,227.76,0.87560922]
[1733120444474,0.87591707,227.89,227.76,0.87560922]
[1733120444974,8.09827363,227.88,227.76,21.80465834]
[1733120445193,0.87591707,227.89,227.78,4.391]